{"text_format":"1","workbook":"xlsx","n_sheets":6,"sheets":["ניהול","א. פתיח","ב. שאלון למילוי מגיש הבקשה","ג. ציוד פעילות גופנית-זוזו","ד. סיכום","ה. סיכום מפורט (לשימוש משרדי)"],"not_rendered":{"charts":0,"images":2,"macros":1,"external_links":0,"defined_names":3,"comments":0,"pivot_tables":0},"unopened":[],"bounds":{"document_bytes":16777216,"sheet_cells":100000,"rows_first":2000,"rows_last":500,"rows_between":2000,"halvings":0,"cell_chars":16384,"cell_head_chars":4096},"cells_cut":0,"cells_raw":0,"read":"whole","date_system":"1900"}

{"sheet":"ניהול","index":0,"n_rows":17,"n_cols":4,"rows_kept":17,"cut":false,"hidden":true,"merged":[]}
["סוג המסגרת",null,"פעולות נעילה/ פתיחה"]
["נא לבחור מתוך הרשימה:",null,"כלים","הסבר"]
["מועדון חברתי גילאי 21+",1,null,"הכפתור נועל את הנתונים הנבחרים "]
["מרש\"לים",null,null,"הקובץ  נשלח עם נעילת נתוני התקן ונוסחאות"]
["מרכז רש\"ת/מע\"ש 21+",2,null,"הכפתור פותח את כל הנתונים"]
["מפעל רב נכותי 21+",null,null,"יש להפעיל אותו לאחר  אישור בקשת הגוף"]
["מרכז יום (טיפולי/סיעודי) 21+",null,null,"לצורך נעילת שלב אישור בקשת הגוף"]
["יח' טיפולית במרכז רש\"ת/מע\"ש 21+",3,null,"יש להפעיל את הכפתור אחרי פעולה מס' 2"]
["יח' מזדקנים במרכז רש\"ת",null,null,"ואחרי זה כפתור מס' 1 "]
["מרכז יום לגמלאים",4,null,"הכפתור נדרש במקרים מיוחדים"]
[null,null,null,"במידה ויש לעשות תיקונים אחרי שלב האישור"]
[null,null,null,"או לצרכים טכניים"]
[null,null,null,"להפעלתו יש לעשות פעולה מס' 2"]
[null,null,null,"ואחרי תיקון נתוני האישור לבצע פעולות  3 ו- 1"]
[null,5,null,"סינון ציוד מוזמן בסעיף \"סיכום מפורט\" אינו מוגן"]
[null,null,null,"מפני שהסינון לא עובד במצב נעול, לכן יש להיזהר "]
[null,null,null,"מכול פעולה מעבר מהפעלת הסינון באמצאות הכפתורים"]

{"sheet":"א. פתיח","index":1,"n_rows":44,"n_cols":7,"rows_kept":44,"cut":false,"hidden":false,"merged":[[22,1,22,10],[23,1,23,10],[24,1,24,7]]}
[]
[]
[]
[]
[]
[]
[]
[]
[null,"תקן ציוד פעילות גופנית - \"זוזו\" ביחד לחיים בריאים"]
[null,"תאריך עידכון : 12.01.25"]
[]
[null,"קישור לפרוייקט \"זוזו\"- ביחד לחיים בריאים"]
[]
[null,"רקע כללי"]
[null,"  תקן זה עוסק בציוד. "]
[]
[null,"מטרת תקן ציוד"]
[null,"לסייע לרשויות או גופים המפעילים מסגרות להפעיל תוכנית זוזו . "]
[null,"התקן מהווה רשימת ציוד לצורך קיום הפעילות"]
[null,"לא נדרש להציג שתי הצעות מחיר. "]
[]
[null,"הבהרות"]
[null,"לתשומת ליבכם, מיזם זוזו מותנה באישורים רפואיים והתחייבות להפעלת הפעילות הגופנית כמפורט בהנחיות."]
[null,"הסכומים המופיעים בטבלאות כוללים מע\"מ."]
[null,"גובה הסיוע כפוף להחלטות ומדיניות הנהלת הקרן המשתנות/מתעדכנות  באתר הקרן."]
[]
[null,"הנחיות למילוי הקובץ:"]
[null,"שלב הגשת הבקשה:"]
[null,"עליכם למלא גיליון ב' בטרם מילוי הגיליונות האחרים"]
[null,"גיליון ג'  עליכם למלא רק עמודות הצבועות בירוק"]
[null,"אין לגעת בתאים האחרים- תאים אלו \"נעולים\""]
[]
[null,"שלב הדיווח על ההוצאות:"]
[null,"לאחר אישור הבקשה יוחזר הגיליון עם הפריטים המאושרים "]
[null,"גיליונות ד' עד ה' עליכם למלא רק עמודות הצבועות בכתום "]
[null,"אין לגעת בתאים האחרים- תאים אלו \"נעולים\""]
[]
[null,null,null,null,null,null,"במרכז תעסוקה קריית אתא פועלת סדנה להדפסה על חולצות."]
[null,null,null,null,null,null,"כל מי שפונה לרכישת ציוד זוזו ומעוניין בחולצות יכול לפנות אל  \"מרכז הדפסות \" "]
[null,null,null,null,null,null,"חשבונית לכל לקוח בעבור ביצוע העבודה"]
[null,null,null,null,null,null,"טלפון להזמנות :  לאה רוזנברג 050-8722472"]
[null,null,null,null,null,null,"מייל : hadpasot-ata@ednm.org.il"]
[]
[null,null,null,null,"**","קרן שלם אינה אחראית על הדפסת החולצות או על איכותן."]

{"sheet":"ב. שאלון למילוי מגיש הבקשה","index":2,"n_rows":41,"n_cols":5,"rows_kept":41,"cut":false,"hidden":false,"merged":[[18,2,18,3],[30,2,30,3],[36,2,36,3],[28,2,28,3],[26,2,26,3],[24,2,24,3]]}
[]
[]
[]
[]
[]
[]
[]
[null,{"$f":"'א. פתיח'!B12","v":"קישור לפרוייקט \"זוזו\"- ביחד לחיים בריאים"}]
[]
[null,"שאלון למגיש הבקשה"]
[null,"הערות והסברים למילוי הבקשה"]
[null,"יש למלא את השאלון לעיל לפני מעבר לכתב הכמויות"]
[null,"הגוף המבקש מתבקש למלא פרטים בתאים המסומנים בצבע ירוק בלבד. אין למלא תאים אחרים."]
[null,"כל מחירי התקן כוללים מע\"מ ."]
[null,"קרן שלם מיועדת לאנשים עם מש\"ה. במסגרת הנותנת מענה רב נכותי, ההתיחסות הינה בהתאם למספר מקבלי השרות המוכרים עם מש\"ה."]
[]
[]
[]
[null,null,"תאריך הגשת הבקשה"]
[]
[null,null,"שם המסגרת"]
[]
[null,null,"סוג המסגרת",null,"נא לבחור מתוך הרשימה:"]
[]
[null,null,"שם הרשות"]
[]
[null,null,"שם הארגון המפעיל"]
[]
[null,null,"כתובת המסגרת"]
[]
[null,null,"שם ושם משפחה איש קשר"]
[]
[null,null,"תפקיד איש קשר"]
[]
[null,null,"נייד איש קשר "]
[]
[null,null,"מייל איש קשר"]
[]
[null,null,"מספר האנשים שעבורם מיועד הפרויקט"]
[]
[null,null,"כמה מתוכם מוכרים עם (מש\"ה/ לקות חושית/הנמכה קוגניטיבית)"]

{"sheet":"ג. ציוד פעילות גופנית-זוזו","index":3,"n_rows":21,"n_cols":15,"rows_kept":21,"cut":false,"hidden":false,"merged":[[17,1,17,2],[4,1,4,4],[4,7,4,9],[4,11,4,14]]}
[null,"ציוד פעילות גופנית- זוזו",null,null,null,null,null,"שלב הגשת בקשת הגוף:",null,null,null,"שלב הדיווח לתשלום לאחר ביצוע:"]
[null,{"$f":"'ב. שאלון למילוי מגיש הבקשה'!C21","v":"שם המסגרת"},null,{"$f":"'ב. שאלון למילוי מגיש הבקשה'!E21","v":0},null,null,null,"יש למלא גיליון ג' בטרם מילוי הגיליונות האחרים.",null,null,null,"לאחר אישור הבקשה יוחזר הגיליון עם הפריטים המאושרים"]
[null,{"$f":"'ב. שאלון למילוי מגיש הבקשה'!C23","v":"סוג המסגרת"},null,{"$f":"'ב. שאלון למילוי מגיש הבקשה'!E23","v":"נא לבחור מתוך הרשימה:"},null,null,null,"גיליונות ד' עד ט' -יש למלא רק עמודות הצבועות בירוק",null,null,null,"גיליונות ד' עד ח' יש למלא רק עמודות הצבועות בכתום/ורוד"]
[null,{"$f":"'ב. שאלון למילוי מגיש הבקשה'!C39","v":"מספר האנשים שעבורם מיועד הפרויקט"},null,{"$f":"'ב. שאלון למילוי מגיש הבקשה'!E39","v":0},null,null,null,"אין לגעת בתאים האחרים- תאים אלו יהיו נעולים",null,null,null,"אין לגעת בתאים האחרים- תאים אלו יהיו נעולים"]
[null,"תקן",null,null,null,null,null,"בקשת הגוף",null,null,null,"דיווח לתשלום"]
[null,"פריטים","תיאור","כמות תקן למסגרת","מחיר ליחידה","תקציב מומלץ לפי תקן",null,"כמות מבוקשת","תקציב מבוקש לקבוצה","הערות הגוף",null,"הפריט שנרכש","מס' חשבונית מס","תאריך חשבונית מס","סכום כולל מע\"מ"]
[null,"ציוד עזר","טלויזיה  65' + מסך הגנה",1,4500,{"$f":"D7*E7","v":4500},null,null,{"$f":"E7*H7","v":0}]
[null,null,"מתקן תליה לטלוויזיה",1,250,{"$f":"D8*E8","v":250},null,null,{"$f":"E8*H8","v":0}]
[null,null,"ארון איחסון הציוד",1,3000,3000,null,null,0]
[null,null,"רולאפ/שילוט של המיזם (לינק ללוגו)",1,1600,1600,null,null,0]
[null,"ציוד ספורט","טבעות פילאטיס",10,130,1300,null,null,0]
[null,null,"מזרן פילאטיס",10,100,1000,null,null,0]
[null,null,"מוט אימון פילאטיס",10,100,1000,null,null,0]
[null,null,"גומיית פילאטיס",10,100,1000,null,null,0]
[null,null,"כדור over ball",10,100,1000,null,null,0]
[null,null,"כרית שעועית ",10,100,1000,null,null,0]
[null,null,"חולצות עם לוגו הפרויקט (לינק ללוגו)",{"$f":"D4","v":0},70,0,null,null,0]
[null,"סה\"כ ציוד פעילות ספורט (כולל מע\"מ)",null,null,null,{"$f":"SUM(F7:F17)","v":15650},null,null,{"$f":"SUM(I7:I17)","v":0},{"$f":"B18","v":"סה\"כ ציוד פעילות ספורט (כולל מע\"מ)"},null,{"$f":"J18","v":"סה\"כ ציוד פעילות ספורט (כולל מע\"מ)"},null,null,{"$f":"SUM(O7:O17)","v":0}]
[]
[null,"הערה:"]
[null,"קיצור דרך לאתר הפרויקט"]

{"sheet":"ד. סיכום","index":4,"n_rows":32,"n_cols":4,"rows_kept":32,"cut":false,"hidden":false,"merged":[]}
[]
[]
[]
[]
[]
[]
[]
[null,{"$f":"'א. פתיח'!B12","v":"קישור לפרוייקט \"זוזו\"- ביחד לחיים בריאים"}]
[]
[null,"דוח ביצוע מסכם"]
[]
[null,"הנחיות לקבלת תשלום : "]
[null,"יש למלא את ההוצאות בפועל בכל אחד מהגיליונות הרלבנטיים הקודמים. הסכומים יעודכנו אוטומטית בגיליון זה."]
[null,"יש לשלוח את הקובץ הזה במלואו באימייל המצויין מטה."]
[null,"יש להדפיס עמוד זה ולהחתים כנדרש "]
[null,"בנוסף יש לצרף :"]
[null,"צילומי חשבוניות מס / קבלות או כרטסת חתומה ע\"י רו\"ח של ארגון מפעיל/ גזבר הרשות"]
[null,"את הדיווחים  לתשלום  ואת הקובץ במלואו יש לשלוח במייל : limor@kshalem.org.il"]
[null,"באחריות השולח לוודא כי החמרים הגיעו ליעדם "]
[]
[null,{"$f":"'ב. שאלון למילוי מגיש הבקשה'!C21","v":"שם המסגרת"},{"$f":"'ב. שאלון למילוי מגיש הבקשה'!E21","v":0}]
[null,{"$f":"'ב. שאלון למילוי מגיש הבקשה'!C21","v":"שם המסגרת"},{"$f":"'ב. שאלון למילוי מגיש הבקשה'!E23","v":"נא לבחור מתוך הרשימה:"}]
[null,{"$f":"'ב. שאלון למילוי מגיש הבקשה'!C39","v":"מספר האנשים שעבורם מיועד הפרויקט"},{"$f":"'ב. שאלון למילוי מגיש הבקשה'!E39","v":0}]
[]
[null,"ציוד על פי נושאים","סכום מאושר","סכום שבוצע בפועל"]
[null,{"$f":"'ג. ציוד פעילות גופנית-זוזו'!B1","v":"ציוד פעילות גופנית- זוזו"},{"$f":"'ג. ציוד פעילות גופנית-זוזו'!I18","v":0},{"$f":"'ג. ציוד פעילות גופנית-זוזו'!O18","v":0}]
[]
[null,"מספר פרוייקט קרן שלם"]
[]
[null,"חתימה וחותמת גזבר/רו\"ח"]
[]
[null,"תאריך "]

{"sheet":"ה. סיכום מפורט (לשימוש משרדי)","index":5,"n_rows":20,"n_cols":8,"rows_kept":20,"cut":false,"hidden":false,"merged":[]}
[{"$f":"'א. פתיח'!B12","v":"קישור לפרוייקט \"זוזו\"- ביחד לחיים בריאים"}]
["מספר מק\"ט",{"$f":"'ד. סיכום'!C28","v":0}]
[{"$f":"'ב. שאלון למילוי מגיש הבקשה'!C21","v":"שם המסגרת"},{"$f":"'ב. שאלון למילוי מגיש הבקשה'!E21","v":0}]
[{"$f":"'ב. שאלון למילוי מגיש הבקשה'!C23","v":"סוג המסגרת"},{"$f":"'ב. שאלון למילוי מגיש הבקשה'!E23","v":"נא לבחור מתוך הרשימה:"}]
[{"$f":"'ב. שאלון למילוי מגיש הבקשה'!C39","v":"מספר האנשים שעבורם מיועד הפרויקט"},{"$f":"'ב. שאלון למילוי מגיש הבקשה'!E39","v":0}]
[null,"בקשה / אישור",null,null,"דיווח לתשלום"]
[{"$f":"'ג. ציוד פעילות גופנית-זוזו'!C6","v":"תיאור"},{"$f":"'ג. ציוד פעילות גופנית-זוזו'!H6","v":"כמות מבוקשת"},{"$f":"'ג. ציוד פעילות גופנית-זוזו'!I6","v":"תקציב מבוקש לקבוצה"},null,{"$f":"'ג. ציוד פעילות גופנית-זוזו'!L6","v":"הפריט שנרכש"},{"$f":"'ג. ציוד פעילות גופנית-זוזו'!M6","v":"מס' חשבונית מס"},{"$f":"'ג. ציוד פעילות גופנית-זוזו'!N6","v":"תאריך חשבונית מס"},{"$f":"'ג. ציוד פעילות גופנית-זוזו'!O6","v":"סכום כולל מע\"מ"}]
[{"$f":"'ג. ציוד פעילות גופנית-זוזו'!B1","v":"ציוד פעילות גופנית- זוזו"},null,null,null,{"$f":"A8","v":"ציוד פעילות גופנית- זוזו"}]
[{"$f":"'ג. ציוד פעילות גופנית-זוזו'!C7","v":"טלויזיה  65' + מסך הגנה"},{"$f":"'ג. ציוד פעילות גופנית-זוזו'!H7","v":0},{"$f":"'ג. ציוד פעילות גופנית-זוזו'!I7","v":0},null,{"$f":"'ג. ציוד פעילות גופנית-זוזו'!L7","v":0},{"$f":"'ג. ציוד פעילות גופנית-זוזו'!M7","v":0},{"$f":"IF(F9=0,\"\",'ג. ציוד פעילות גופנית-זוזו'!N7)","v":""},{"$f":"'ג. ציוד פעילות גופנית-זוזו'!O7","v":0}]
[{"$f":"'ג. ציוד פעילות גופנית-זוזו'!C8","v":"מתקן תליה לטלוויזיה"},{"$f":"'ג. ציוד פעילות גופנית-זוזו'!H8","v":0},{"$f":"'ג. ציוד פעילות גופנית-זוזו'!I8","v":0},null,{"$f":"'ג. ציוד פעילות גופנית-זוזו'!L8","v":0},{"$f":"'ג. ציוד פעילות גופנית-זוזו'!M8","v":0},{"$f":"IF(F10=0,\"\",'ג. ציוד פעילות גופנית-זוזו'!N8)","v":""},{"$f":"'ג. ציוד פעילות גופנית-זוזו'!O8","v":0}]
[{"$f":"'ג. ציוד פעילות גופנית-זוזו'!C9","v":"ארון איחסון הציוד"},{"$f":"'ג. ציוד פעילות גופנית-זוזו'!H9","v":0},{"$f":"'ג. ציוד פעילות גופנית-זוזו'!I9","v":0},null,{"$f":"'ג. ציוד פעילות גופנית-זוזו'!L9","v":0},{"$f":"'ג. ציוד פעילות גופנית-זוזו'!M9","v":0},{"$f":"IF(F11=0,\"\",'ג. ציוד פעילות גופנית-זוזו'!N9)","v":""},{"$f":"'ג. ציוד פעילות גופנית-זוזו'!O9","v":0}]
[{"$f":"'ג. ציוד פעילות גופנית-זוזו'!C10","v":"רולאפ/שילוט של המיזם (לינק ללוגו)"},{"$f":"'ג. ציוד פעילות גופנית-זוזו'!H10","v":0},{"$f":"'ג. ציוד פעילות גופנית-זוזו'!I10","v":0},null,{"$f":"'ג. ציוד פעילות גופנית-זוזו'!L10","v":0},{"$f":"'ג. ציוד פעילות גופנית-זוזו'!M10","v":0},{"$f":"IF(F12=0,\"\",'ג. ציוד פעילות גופנית-זוזו'!N10)","v":""},{"$f":"'ג. ציוד פעילות גופנית-זוזו'!O10","v":0}]
[{"$f":"'ג. ציוד פעילות גופנית-זוזו'!C11","v":"טבעות פילאטיס"},{"$f":"'ג. ציוד פעילות גופנית-זוזו'!H11","v":0},{"$f":"'ג. ציוד פעילות גופנית-זוזו'!I11","v":0},null,{"$f":"'ג. ציוד פעילות גופנית-זוזו'!L11","v":0},{"$f":"'ג. ציוד פעילות גופנית-זוזו'!M11","v":0},{"$f":"IF(F13=0,\"\",'ג. ציוד פעילות גופנית-זוזו'!N11)","v":""},{"$f":"'ג. ציוד פעילות גופנית-זוזו'!O11","v":0}]
[{"$f":"'ג. ציוד פעילות גופנית-זוזו'!C12","v":"מזרן פילאטיס"},{"$f":"'ג. ציוד פעילות גופנית-זוזו'!H12","v":0},{"$f":"'ג. ציוד פעילות גופנית-זוזו'!I12","v":0},null,{"$f":"'ג. ציוד פעילות גופנית-זוזו'!L12","v":0},{"$f":"'ג. ציוד פעילות גופנית-זוזו'!M12","v":0},{"$f":"IF(F14=0,\"\",'ג. ציוד פעילות גופנית-זוזו'!N12)","v":""},{"$f":"'ג. ציוד פעילות גופנית-זוזו'!O12","v":0}]
[{"$f":"'ג. ציוד פעילות גופנית-זוזו'!C13","v":"מוט אימון פילאטיס"},{"$f":"'ג. ציוד פעילות גופנית-זוזו'!H13","v":0},{"$f":"'ג. ציוד פעילות גופנית-זוזו'!I13","v":0},null,{"$f":"'ג. ציוד פעילות גופנית-זוזו'!L13","v":0},{"$f":"'ג. ציוד פעילות גופנית-זוזו'!M13","v":0},{"$f":"IF(F15=0,\"\",'ג. ציוד פעילות גופנית-זוזו'!N13)","v":""},{"$f":"'ג. ציוד פעילות גופנית-זוזו'!O13","v":0}]
[{"$f":"'ג. ציוד פעילות גופנית-זוזו'!C14","v":"גומיית פילאטיס"},{"$f":"'ג. ציוד פעילות גופנית-זוזו'!H14","v":0},{"$f":"'ג. ציוד פעילות גופנית-זוזו'!I14","v":0},null,{"$f":"'ג. ציוד פעילות גופנית-זוזו'!L14","v":0},{"$f":"'ג. ציוד פעילות גופנית-זוזו'!M14","v":0},{"$f":"IF(F16=0,\"\",'ג. ציוד פעילות גופנית-זוזו'!N14)","v":""},{"$f":"'ג. ציוד פעילות גופנית-זוזו'!O14","v":0}]
[{"$f":"'ג. ציוד פעילות גופנית-זוזו'!C15","v":"כדור over ball"},{"$f":"'ג. ציוד פעילות גופנית-זוזו'!H15","v":0},{"$f":"'ג. ציוד פעילות גופנית-זוזו'!I15","v":0},null,{"$f":"'ג. ציוד פעילות גופנית-זוזו'!L15","v":0},{"$f":"'ג. ציוד פעילות גופנית-זוזו'!M15","v":0},{"$f":"IF(F17=0,\"\",'ג. ציוד פעילות גופנית-זוזו'!N15)","v":""},{"$f":"'ג. ציוד פעילות גופנית-זוזו'!O15","v":0}]
[{"$f":"'ג. ציוד פעילות גופנית-זוזו'!C16","v":"כרית שעועית "},{"$f":"'ג. ציוד פעילות גופנית-זוזו'!H16","v":0},{"$f":"'ג. ציוד פעילות גופנית-זוזו'!I16","v":0},null,{"$f":"'ג. ציוד פעילות גופנית-זוזו'!L16","v":0},{"$f":"'ג. ציוד פעילות גופנית-זוזו'!M16","v":0},{"$f":"IF(F18=0,\"\",'ג. ציוד פעילות גופנית-זוזו'!N16)","v":""},{"$f":"'ג. ציוד פעילות גופנית-זוזו'!O16","v":0}]
[{"$f":"'ג. ציוד פעילות גופנית-זוזו'!C17","v":"חולצות עם לוגו הפרויקט (לינק ללוגו)"},{"$f":"'ג. ציוד פעילות גופנית-זוזו'!H17","v":0},{"$f":"'ג. ציוד פעילות גופנית-זוזו'!I17","v":0},null,{"$f":"'ג. ציוד פעילות גופנית-זוזו'!L17","v":0},{"$f":"'ג. ציוד פעילות גופנית-זוזו'!M17","v":0},{"$f":"IF(F19=0,\"\",'ג. ציוד פעילות גופנית-זוזו'!N17)","v":""},{"$f":"'ג. ציוד פעילות גופנית-זוזו'!O17","v":0}]
["סה\"כ ציוד ספורט/ זוזו כולל מע\"מ",null,{"$f":"SUM(C9:C19)","v":0},null,{"$f":"A20","v":"סה\"כ ציוד ספורט/ זוזו כולל מע\"מ"},null,{"$f":"IF(F20=0,\"\",'ג. ציוד פעילות גופנית-זוזו'!N18)","v":""},{"$f":"SUM(H9:H19)","v":0}]